bitfinex-derivatives/quotes_ETHF0:USTF0_20241228
["timestamp","ask_amount","ask_price","bid_price","bid_amount"]
[1735396570086,0.29632,3380.4,3380.3,0.29632]
[1735396570490,0.29633,3380.3,3380.2,0.29633]
[1735396570791,3.2078,3380.8,3380.4,0.29631]
[1735396571003,3.2078,3380.8,3380.0,1.2768]
[1735396571196,0.29629,3380.7,3380.6,0.29629]
[1735396571392,3.2078,3380.8,3380.2,0.29632]
[1735396571393,0.29633,3380.3,3380.2,0.29632]
[1735396572095,0.29631,3380.5,3380.4,0.2963]
[1735396572390,3.50408,3380.8,3380.7,0.29628]
[1735396572590,3.50408,3380.8,3380.1,0.74084]
[1735396572591,3.2078,3381.3,3380.6,0.74074]
[1735396572895,4.90210307,3381.6,3381.5,0.29621]
[1735396573387,0.29622,3381.4,3381.3,3.2078]
[1735396573893,0.29622,3381.5,3381.4,0.29621]
[1735396575197,1.2051,3381.7,3381.3,3.2078]
[1735396575496,0.29622,3381.5,3381.4,0.29622]
[1735396576494,0.29622,3381.5,3381.3,3.2078]
[1735396576495,2.517,3381.9,3381.3,3.2078]
[1735396576698,0.29622,3381.4,3381.3,3.50403]
[1735396577797,0.29622,3381.4,3381.3,3.2078]
[1735396578297,0.74048,3381.8,3380.4,1.96216]
[1735396578298,0.29627,3380.9,3380.8,3.2078]
[1735396578497,0.2963,3380.5,3380.4,1.51771]
[1735396579394,1.1721,3380.9,3380.4,1.2214]
[1735396579591,0.29623,3381.3,3381.2,0.29623]
[1735396580295,3.2078,3381.4,3381.3,0.29623]
[1735396581190,3.50402,3381.4,3381.3,0.29623]
[1735396581391,0.29624,3381.3,3381.2,0.29624]
[1735396581996,0.29625,3381.1,3381.0,3.2078]
[1735396582296,3.2078,3381.6,3380.7,1.2067]
[1735396582297,0.29626,3381.0,3380.9,0.29626]
[1735396582498,0.29628,3380.9,3380.8,0.29627]
[1735396582691,3.2078,3381.2,3380.6,0.29629]
[1735396582892,0.29629,3380.6,3380.5,3.2078]
[1735396584392,0.29629,3380.6,3379.8,1.58486]
[1735396584393,0.29636,3379.9,3379.8,1.58486]
[1735396584599,0.29635,3380.0,3379.9,0.29635]
[1735396585297,1.2835,3380.3,3379.4,3.2078]
[1735396585298,0.29637,3379.8,3379.4,3.2078]
[1735396585502,0.29639,3379.6,3379.5,0.29639]
[1735396585696,0.29639,3379.5,3379.4,3.50419]
[1735396586097,0.29639,3379.5,3379.4,3.2078]
[1735396586494,0.29639,3379.5,3379.4,3.5042]
[1735396586703,0.29639,3379.5,3379.4,3.2078]
[1735396586895,0.29641,3379.3,3379.2,1.1772]
[1735396587096,0.29641,3379.3,3379.2,1.47362]
[1735396587298,0.29643,3379.1,3379.0,0.29643]
[1735396587603,3.2078,3379.6,3378.9,0.29644]
[1735396587604,0.29644,3379.0,3378.9,0.29644]
[1735396587898,0.29645,3378.8,3378.7,3.2078]
[1735396588294,3.2078,3379.2,3378.4,1.1772]
[1735396588501,0.74109,3379.0,3378.4,1.47369]
[1735396588691,0.29647,3378.7,3378.5,0.29647]
[1735396589298,4.5034,3379.2,3378.4,4.385]
[1735396589499,0.29646,3378.7,3378.6,0.29647]
[1735396589706,4.5034,3379.2,3378.4,4.385]
[1735396589907,0.29647,3378.6,3378.5,0.29647]
[1735396590200,0.29646,3378.7,3378.6,0.29647]
[1735396590399,3.2078,3379.2,3378.4,4.385]
[1735396590603,0.29643,3379.1,3379.0,0.29643]
[1735396590996,0.29643,3379.0,3378.9,0.29644]
[1735396591397,3.2078,3379.2,3378.4,4.385]
[1735396591597,0.29643,3379.1,3378.4,5.12622]
[1735396591800,3.2078,3379.2,3378.4,4.385]
[1735396592000,3.2078,3379.2,3378.5,0.7412]
[1735396592204,3.2078,3379.2,3378.4,4.385]
[1735396592402,0.29644,3379.0,3378.9,0.29644]
[1735396592901,3.50422,3379.2,3379.1,0.29643]
[1735396593108,0.29641,3379.3,3378.7,3.2078]
[1735396593405,0.2964,3379.4,3379.3,0.29641]
[1735396593909,0.29641,3379.3,3379.1,0.29642]
[1735396594105,0.29641,3379.3,3379.2,0.29642]
[1735396594406,1.2986,3379.5,3379.1,0.29642]
[1735396594407,0.29642,3379.2,3379.1,0.29642]
[1735396595002,0.29641,3379.3,3379.1,0.29642]
[1735396595202,1.2986,3379.5,3378.7,3.2078]
[1735396595397,0.29645,3378.9,3378.7,3.50426]
[1735396596606,2.03959,3379.5,3378.7,3.2078]
[1735396596808,0.29645,3378.8,3378.7,3.2078]
[1735396597009,2.03959,3379.5,3379.0,0.29643]
[1735396597210,1.2986,3379.5,3379.0,0.29643]
[1735396597608,0.29642,3379.2,3379.0,0.29643]
[1735396597809,0.29642,3379.2,3379.1,0.29643]
[1735396598010,0.29643,3379.1,3379.0,0.29643]
[1735396598205,0.29642,3379.2,3379.0,0.29643]
[1735396598805,1.2986,3379.5,3378.7,3.2078]
[1735396599111,0.29643,3379.1,3378.9,0.29644]
[1735396599608,0.29643,3379.1,3379.0,0.29643]
[1735396600001,0.29644,3379.0,3378.9,0.29644]
[1735396600408,0.74101,3379.4,3378.7,3.2078]
[1735396600610,1.2986,3379.5,3378.7,3.2078]
[1735396600810,0.29643,3379.1,3379.0,0.29643]
[1735396601008,0.29642,3379.3,3379.1,0.29642]
[1735396601416,1.2986,3379.5,3379.1,0.29642]
[1735396601417,0.29642,3379.2,3379.1,0.29642]
[1735396601910,0.29643,3379.1,3379.0,0.29643]
[1735396602110,1.2986,3379.5,3378.7,3.2078]
[1735396602313,0.29643,3379.1,3379.0,0.29643]
[1735396604104,1.2986,3379.5,3378.7,3.2078]
[1735396604310,0.29641,3379.4,3379.3,0.2964]
[1735396604613,3.2078,3380.5,3379.1,3.2078]
[1735396604812,3.2078,3380.5,3379.8,3.2078]
[1735396605006,2.5281,3380.7,3380.2,3.2078]
[1735396605207,0.29632,3380.3,3380.2,3.50412]
[1735396605407,0.29632,3380.4,3380.3,0.29632]
[1735396605908,0.29632,3380.4,3380.2,3.2078]
[1735396605909,1.53029,3380.7,3380.2,3.2078]
[1735396606106,3.50406,3381.0,3380.9,0.29627]
[1735396606321,3.2078,3381.0,3380.9,0.29627]
[1735396606617,3.50406,3381.0,3380.9,0.29627]
[1735396606816,0.29628,3380.8,3380.3,0.74081]
[1735396607030,0.29628,3380.8,3380.7,0.29629]
[1735396607911,0.29627,3381.0,3380.8,0.29627]
[1735396608118,0.29627,3381.0,3380.6,3.2078]
[1735396608119,0.29623,3381.3,3381.0,0.29625]
[1735396608309,0.29625,3381.2,3381.1,0.29625]
[1735396608510,1.54823,3381.4,3381.3,0.29623]
[1735396608707,1.252,3381.4,3381.0,3.2078]
[1735396608916,0.29624,3381.3,3381.1,0.29624]
[1735396609316,0.29624,3381.3,3381.2,0.29624]
[1735396609519,1.252,3381.4,3381.0,3.2078]
[1735396609817,0.29625,3381.2,3381.1,0.29625]
[1735396610005,0.29625,3381.2,3381.0,3.2078]
[1735396610006,0.29625,3381.1,3381.0,3.2078]
[1735396610212,6.46399942,3381.4,3380.5,3.2078]
[1735396610417,0.29629,3380.7,3380.6,0.29629]
[1735396611415,0.74059,3381.3,3380.7,0.29628]
[1735396611616,0.29627,3380.9,3380.7,0.29628]
[1735396611811,4.4598,3381.4,3380.5,3.2078]
[1735396612017,4.75603,3381.4,3380.6,0.74074]
[1735396612317,0.29625,3381.2,3381.0,0.29625]
[1735396612816,0.29625,3381.2,3381.1,0.29625]
[1735396613120,1.252,3381.4,3380.9,3.2078]
[1735396613417,0.29625,3381.1,3381.0,0.29625]
[1735396613720,1.252,3381.4,3380.9,3.2078]
[1735396613721,0.29626,3381.0,3380.9,3.2078]
[1735396614019,1.252,3381.4,3381.0,0.29625]
[1735396614215,0.29625,3381.2,3381.0,0.29625]
[1735396614517,0.29625,3381.2,3380.9,3.2078]
[1735396614720,0.29625,3381.2,3381.0,0.29625]
[1735396615312,0.29625,3381.2,3380.9,3.2078]
[1735396615514,0.29624,3381.3,3381.2,0.29624]
[1735396615719,1.54823,3381.4,3381.3,0.29623]
[1735396616215,1.252,3381.4,3380.9,3.2078]
[1735396616521,0.29625,3381.2,3381.1,0.29625]
[1735396616721,0.29624,3381.3,3381.1,0.29625]
[1735396617917,0.29624,3381.3,3381.2,0.29624]
[1735396618622,1.252,3381.4,3380.9,3.2078]
[1735396618920,0.29626,3381.1,3381.0,0.29626]
[1735396619315,0.29628,3380.8,3380.7,0.29628]
[1735396619916,5.20038,3381.4,3380.5,3.2078]
[1735396620122,0.29626,3381.0,3380.9,3.50406]
[1735396620616,0.29625,3381.2,3381.1,0.29624]
[1735396621017,0.29623,3381.4,3381.3,0.29622]
[1735396621618,0.29624,3381.3,3381.2,0.29624]
[1735396622626,0.29625,3381.2,3381.1,0.29624]
[1735396622812,0.29626,3381.0,3380.9,3.2078]
[1735396623122,0.29626,3381.0,3380.2,0.74082]
[1735396623123,0.29629,3380.6,3380.5,3.2078]
[1735396624119,0.74074,3380.7,3379.7,4.5104]
[1735396624322,4.41289,3380.9,3380.1,3.2078]
[1735396624516,3.6722,3380.9,3380.1,3.2078]
[1735396624721,0.29626,3381.0,3380.9,0.29626]
[1735396624923,1.2006,3381.3,3380.5,3.94854]
[1735396625221,0.29628,3380.8,3380.7,0.29629]
[1735396625423,1.2401,3381.2,3380.6,1.2267]
[1735396625625,0.29625,3381.1,3381.0,0.29625]
[1735396625929,1.53635,3381.2,3381.1,0.29625]
[1735396626528,0.29626,3381.1,3381.0,0.29625]
[1735396627731,0.29626,3381.0,3380.9,3.50406]
[1735396628832,0.29625,3381.1,3381.0,0.29625]
[1735396629527,1.2401,3381.2,3381.1,0.29625]
[1735396629730,1.49684,3381.3,3381.2,0.29624]
[1735396630130,1.49684,3381.3,3381.1,0.29625]
[1735396630131,0.29625,3381.2,3381.1,0.29625]
[1735396632828,0.29626,3381.1,3381.0,0.29625]
[1735396633029,1.2006,3381.3,3380.9,3.2078]
[1735396633229,0.29626,3381.0,3380.9,3.2078]
[1735396633638,0.29626,3381.0,3380.9,3.50407]
[1735396634136,1.9412,3381.3,3380.9,3.2078]
[1735396634137,1.2006,3381.3,3380.9,3.2078]
[1735396634335,0.29625,3381.1,3381.0,0.29625]
[1735396634724,0.29626,3381.0,3380.9,3.50407]
[1735396635531,0.29624,3381.2,3381.1,0.29624]
[1735396636132,3.50403,3381.4,3381.3,0.29623]
[1735396636534,3.2078,3381.4,3380.9,4.4937]
[1735396636735,0.29624,3381.3,3381.2,0.29624]
[1735396638027,0.29621,3381.6,3381.5,0.29621]
[1735396638432,3.94825,3382.0,3381.0,0.74066]
[1735396638633,0.29622,3381.5,3381.4,0.29622]
[1735396639239,0.29621,3381.6,3381.5,0.2962]
[1735396639637,0.29623,3381.5,3381.4,0.29622]
[1735396640536,3.94825,3382.0,3381.0,0.74066]
[1735396640834,3.94825,3382.0,3381.0,0.29625]
[1735396640835,0.29626,3381.1,3381.0,0.29625]
[1735396641230,2.00419942,3381.8,3380.9,3.2078]
[1735396641543,0.29622,3381.4,3381.3,0.29622]
[1735396641741,3.2078,3382.0,3380.9,3.2078]
[1735396641942,0.29626,3381.0,3380.9,3.2078]
[1735396642743,2.00419942,3381.0,3380.1,7.734555]
[1735396643038,0.29633,3380.2,3380.1,7.734555]
[1735396643344,0.29633,3380.2,3380.1,3.2078]
[1735396644045,0.29634,3380.1,3380.0,0.29634]
[1735396644541,0.29634,3380.2,3380.0,0.29635]
[1735396644838,0.29634,3380.1,3380.0,0.29635]
[1735396645036,1.2947,3380.4,3379.9,3.2078]
[1735396645231,3.2078,3380.6,3380.1,1.6761224]
[1735396645437,7.81369307,3381.1,3381.0,0.29626]
[1735396645844,8.10994307,3381.1,3381.0,0.29626]
[1735396646142,0.29627,3380.9,3380.8,0.29627]
[1735396646338,3.2078,3381.1,3381.0,0.29626]
[1735396646543,1.2672,3381.4,3380.6,2.5767]
[1735396646544,1.2672,3381.4,3380.8,3.2078]
[1735396646748,0.29622,3381.5,3381.4,0.29622]
[1735396646936,1.2287,3381.6,3381.2,3.2078]
[1735396647135,0.29622,3381.5,3381.4,0.29622]
[1735396647546,1.2287,3381.6,3381.5,0.29622]
[1735396647847,0.2962,3381.8,3381.7,0.2962]
[1735396648241,5.7065,3382.0,3381.2,3.2078]
[1735396648543,5.7065,3382.0,3380.8,3.2078]
[1735396648544,0.74046,3381.9,3380.8,3.2078]
[1735396648741,0.29621,3381.6,3381.5,0.29621]
[1735396648941,5.7065,3382.0,3381.3,3.2078]
[1735396649143,0.2962,3381.7,3381.6,0.29621]
[1735396649348,0.29621,3381.6,3381.5,0.29621]
[1735396649549,0.29622,3381.5,3381.4,0.29622]
[1735396649843,0.29622,3381.4,3381.3,3.2078]
[1735396650040,0.2962,3381.7,3381.6,0.2962]
[1735396650640,10.31239307,3382.0,3381.3,3.2078]
[1735396650846,0.29621,3381.6,3381.5,0.29621]
[1735396651051,0.29622,3381.5,3381.4,0.29622]
[1735396651238,0.29622,3381.4,3381.3,3.2078]
[1735396654449,1.03679,3381.4,3380.8,3.2078]
[1735396654640,3.94843,3381.2,3380.7,4.526755]
[1735396654855,3.50408,3380.8,3380.7,4.526755]
[1735396655051,3.2078,3380.8,3380.5,4.526755]
[1735396655253,0.29629,3380.6,3380.5,4.526755]
[1735396656154,7.81369307,3380.8,3380.2,0.29632]
[1735396656351,0.29634,3380.2,3380.1,0.29634]
[1735396656554,1.238,3380.5,3380.0,0.29634]
[1735396656555,0.29634,3380.1,3380.0,0.29634]
[1735396656744,1.238,3380.5,3379.9,4.4018]
[1735396656946,0.29634,3380.2,3380.1,0.29634]
[1735396657144,1.238,3380.5,3379.9,4.4018]
[1735396657350,0.29633,3380.3,3380.2,0.29633]
[1735396658154,1.238,3380.5,3379.9,4.4018]
[1735396658343,0.29634,3380.1,3380.0,0.29634]
[1735396658949,0.29635,3380.0,3379.9,3.2078]
[1735396659141,0.29638,3379.6,3379.5,7.734555]
[1735396659347,5.21063303,3380.3,3379.5,7.734555]
[1735396659548,0.29635,3380.0,3379.9,0.29635]
[1735396659740,0.29635,3380.0,3379.5,7.734555]
[1735396659741,0.29636,3379.9,3379.5,3.2078]
[1735396659941,0.29636,3379.9,3379.8,0.29636]
[1735396660350,3.2078,3380.3,3379.5,3.2078]
[1735396660351,0.29635,3380.0,3379.5,3.2078]
[1735396660550,0.29635,3380.0,3379.8,0.29636]
[1735396660863,3.2078,3380.3,3379.8,0.29636]
[1735396661049,0.29636,3379.9,3379.8,0.29636]
[1735396661256,3.2078,3380.3,3379.5,3.2078]
[1735396661455,0.29634,3380.2,3380.1,0.29634]
[1735396661754,0.29634,3380.1,3380.0,0.29634]
[1735396661950,0.29633,3380.2,3380.1,0.29634]
[1735396662251,3.2078,3380.3,3380.2,0.29633]
[1735396662453,4.90219307,3380.6,3380.4,0.29631]
[1735396662656,4.90219307,3380.6,3380.5,0.2963]
[1735396662957,0.2963,3380.5,3380.0,0.74088]
[1735396663157,0.2963,3380.5,3380.4,0.29631]
[1735396664052,0.2963,3380.5,3379.9,4.4601]
[1735396664053,3.2078,3380.7,3379.9,4.4601]
[1735396664248,0.29635,3380.0,3379.9,3.2078]
[1735396664653,0.29635,3380.0,3379.9,3.50416]
[1735396665156,3.2078,3380.7,3380.6,0.29629]
[1735396665360,0.23168222,3381.1,3380.7,0.29629]
[1735396665361,4.60589307,3380.9,3380.7,0.29629]
[1735396665555,4.60589307,3380.9,3380.8,0.29628]
[1735396666758,3.2583175,3381.1,3381.0,0.29626]
[1735396666961,4.64542752,3382.2,3382.1,0.29616]
[1735396668358,0.29617,3382.0,3381.9,0.29618]
[1735396668755,0.29618,3381.9,3381.8,3.50399]
[1735396669265,0.29618,3381.9,3381.8,3.2078]
[1735396672667,0.29623,3381.4,3381.3,3.2078]
[1735396673163,0.29627,3380.9,3380.8,4.526755]
[1735396673469,3.50407,3380.9,3380.8,4.526755]
[1735396673767,0.29629,3380.6,3380.5,4.526755]
[1735396673956,3.2078,3380.9,3380.5,4.526755]
[1735396674159,0.29628,3380.8,3380.6,0.29629]
[1735396674365,3.2078,3381.7,3380.6,3.2078]
[1735396674560,1.2179,3381.7,3381.2,3.2078]
[1735396674762,1.2179,3381.7,3381.6,0.29621]
[1735396675471,3.2078,3382.1,3382.0,0.29617]
[1735396677170,0.29614,3382.4,3382.3,0.29614]
[1735396677467,4.4257,3382.6,3382.5,0.29613]
[1735396677870,4.72182,3382.6,3382.5,0.29613]
[1735396678167,4.4257,3382.6,3382.0,3.2078]
[1735396678363,1.51402,3382.6,3382.5,0.29613]
[1735396678563,1.2179,3382.6,3382.5,0.29613]
[1735396678867,1.51402,3382.6,3382.5,0.29613]
[1735396679268,1.51402,3382.6,3382.0,3.2078]
[1735396679474,1.51402,3382.6,3382.4,0.29613]
[1735396679864,0.29614,3382.4,3382.3,0.29614]
[1735396680064,0.29615,3382.3,3382.2,0.29615]
[1735396680266,1.2179,3382.6,3382.2,0.29615]
[1735396680474,0.29614,3382.4,3382.2,0.29615]
[1735396680666,1.2179,3382.6,3382.2,0.29615]
[1735396680970,0.2962,3381.7,3381.3,4.526755]
[1735396681184,0.2962,3381.7,3381.5,0.29621]
[1735396681764,0.2962,3381.7,3381.1,3.2078]
[1735396682261,0.29622,3381.5,3381.1,3.2078]
[1735396682471,1.2774,3381.6,3381.4,0.29622]
[1735396682767,1.57361,3381.6,3381.4,0.29622]
[1735396683767,1.2774,3381.6,3381.5,0.29622]
[1735396684168,1.57361,3381.6,3381.5,0.29622]
[1735396684571,1.2774,3381.6,3381.1,3.2078]
[1735396685068,1.57361,3381.6,3381.5,0.29622]
[1735396685371,1.2774,3381.6,3381.5,0.29622]
[1735396685672,0.29619,3381.9,3381.1,3.94841]
[1735396685865,4.4731,3382.1,3381.5,3.94835]
[1735396686066,4.4731,3382.1,3382.0,0.29617]
[1735396686268,3.2078,3382.1,3382.0,0.29617]
[1735396687667,1.268,3382.5,3381.6,1.96751]
[1735396687668,3.2078,3382.5,3381.9,3.2078]
[1735396687875,3.2078,3382.5,3382.4,0.29614]
[1735396689376,1.2653,3382.6,3382.5,0.29613]
[1735396689566,1.2653,3382.6,3382.3,3.2078]
[1735396689767,0.29614,3382.4,3381.9,3.50398]
[1735396689966,0.29614,3382.4,3382.0,0.29617]
[1735396689967,0.29617,3382.1,3382.0,0.29617]
[1735396690375,3.94817,3382.3,3381.7,1.264]
[1735396690693,3.2078,3382.3,3381.4,5.31951336]
[1735396690972,0.29613,3382.5,3382.4,0.29613]
[1735396692372,0.29613,3382.5,3382.0,1.2432]
[1735396692669,0.29613,3382.5,3382.4,0.29613]
[1735396693375,0.29613,3382.5,3382.0,1.2432]
[1735396693376,0.29614,3382.4,3382.3,0.29614]
[1735396695075,0.29615,3382.3,3382.2,0.29615]
[1735396695275,0.29615,3382.4,3382.3,0.29615]
[1735396695972,3.2078,3382.7,3382.6,0.29612]
[1735396697975,3.2078,3382.7,3382.2,3.50395]
[1735396697976,0.29615,3382.3,3382.2,3.50395]
[1735396698177,0.29615,3382.3,3382.2,3.2078]
[1735396699072,0.29615,3382.3,3382.2,3.50396]
[1735396701276,1.239,3382.6,3381.6,3.2078]
[1735396701478,3.2078,3382.0,3381.2,3.2078]
[1735396701678,0.29623,3381.4,3381.3,0.29623]
[1735396702073,3.2078,3381.6,3380.8,3.2078]
[1735396702281,0.29628,3380.9,3380.8,0.29627]
[1735396702680,0.29628,3380.8,3380.7,4.57896336]
[1735396702879,1.51968,3380.8,3380.7,4.87525336]
[1735396703082,1.51968,3380.8,3380.7,4.57896336]
[1735396703384,1.51968,3380.8,3380.6,0.29629]
[1735396703385,1.2234,3380.8,3380.6,0.29629]
[1735396703685,0.29629,3380.7,3380.6,0.29629]
[1735396703881,1.2234,3380.8,3380.6,0.29629]
[1735396704080,1.51968,3380.8,3380.7,0.29629]
[1735396704387,3.2078,3381.0,3380.9,0.29627]
[1735396704687,1.49025,3381.2,3381.1,0.29625]
[1735396705279,0.29622,3381.5,3381.2,0.29624]
[1735396705488,0.29622,3381.5,3381.4,0.29623]
[1735396705782,0.29623,3381.4,3381.3,0.29623]
[1735396706585,0.29628,3380.9,3380.7,0.29628]
[1735396706885,0.74064,3381.1,3380.3,3.2078]
[1735396707187,0.29629,3380.7,3380.6,0.29629]
[1735396707780,0.29628,3380.8,3380.7,0.29629]
[1735396707979,1.2824,3381.0,3380.3,3.2078]
[1735396708180,0.29629,3380.7,3380.4,0.29631]
[1735396708380,1.2824,3381.0,3380.3,3.2078]
[1735396708581,1.57866,3381.0,3380.9,0.29627]
[1735396709691,0.29626,3381.0,3380.9,0.29627]
[1735396710278,4.73755,3381.2,3380.8,0.29628]
[1735396710479,0.74053,3381.6,3381.1,0.29625]
[1735396710480,3.2078,3381.6,3381.1,0.29625]
[1735396710781,3.2078,3381.6,3381.5,0.29622]
[1735396710979,3.50401,3381.6,3381.5,0.29622]
[1735396711182,3.2078,3381.6,3381.5,0.29622]
[1735396711788,3.50401,3381.6,3381.5,0.29622]
[1735396711989,0.29622,3381.5,3381.4,0.29622]
[1735396712685,0.29623,3381.4,3381.3,0.29623]
[1735396712887,0.29623,3381.4,3381.1,4.4778]
[1735396712888,0.29622,3381.5,3381.4,0.29622]
[1735396713892,0.74055,3381.5,3380.7,4.57896336]
[1735396714193,0.29628,3380.9,3380.8,0.29627]
[1735396714391,3.2078,3381.1,3380.7,4.57896336]
[1735396714591,3.2078,3381.1,3380.7,0.29629]
[1735396714592,0.29628,3380.8,3380.7,0.29629]
[1735396714791,0.29626,3381.0,3380.9,0.29626]
[1735396715294,1.2258,3381.4,3381.3,0.29623]
[1735396715884,1.52203,3381.4,3381.3,0.29623]
[1735396716302,1.2258,3381.4,3380.7,7.78676336]
[1735396716513,0.29628,3380.9,3380.8,0.29627]
[1735396716809,0.29628,3380.8,3380.7,4.87524336]
[1735396717010,0.29628,3380.8,3380.7,0.29628]
[1735396717305,0.29629,3380.7,3380.6,4.57896336]
[1735396717504,1.49319,3380.7,3380.6,4.57896336]
[1735396718203,0.2963,3380.6,3380.5,0.2963]
[1735396718413,1.4743,3380.6,3380.5,0.2963]
[1735396719109,1.178,3380.6,3380.5,0.2963]
[1735396720408,1.4743,3380.6,3380.5,0.2963]
[1735396720707,1.47432,3380.6,3380.5,0.29632]
[1735396723407,1.178,3380.6,3380.3,3.2078]
[1735396723607,0.29633,3380.4,3380.3,0.29633]
[1735396724211,1.178,3380.6,3379.9,0.7409]
[1735396724404,1.178,3380.6,3380.5,0.29632]
[1735396724611,3.2078,3380.8,3380.7,0.2963]
[1735396724911,3.50409,3380.8,3380.7,0.2963]
[1735396725099,3.2078,3380.8,3380.7,0.2963]
[1735396726911,0.29631,3380.7,3380.6,0.2963]
[1735396727112,0.29634,3380.3,3380.2,0.29633]
[1735396727302,3.2078,3380.8,3380.1,1.277]
[1735396727303,1.1998,3380.7,3380.1,1.277]
[1735396727505,0.29633,3380.5,3380.4,0.29632]
[1735396729309,0.29634,3380.3,3380.2,0.29633]
[1735396729507,0.29636,3380.1,3380.0,0.29635]
[1735396729705,0.29635,3380.2,3380.1,0.29634]
[1735396730212,3.2078,3380.8,3379.7,7.78676336]
[1735396730407,1.2334,3380.1,3379.7,7.78676336]
[1735396730612,1.2334,3380.1,3380.0,0.29636]
[1735396731404,0.29632,3380.6,3380.5,0.29631]
[1735396731603,1.59202,3380.6,3380.5,0.29631]
[1735396732112,0.29634,3380.4,3380.3,0.29634]
[1735396732313,0.29634,3380.3,3380.2,3.50414]
[1735396732509,1.57064,3380.3,3380.2,3.50414]
[1735396732708,1.2743,3380.3,3380.2,3.50414]
[1735396733313,1.57064,3380.3,3380.2,3.50414]
[1735396733814,1.2743,3380.3,3380.2,3.50414]
[1735396734207,1.57064,3380.3,3380.2,3.50414]
[1735396735214,1.2743,3380.3,3380.2,3.50414]
[1735396735712,1.2743,3380.3,3380.2,3.2078]
[1735396735908,1.2743,3380.3,3380.1,0.29635]
[1735396736115,0.29634,3380.2,3380.1,0.29635]
[1735396737410,0.29638,3380.0,3379.9,0.29636]
[1735396738218,1.2932,3380.1,3379.7,3.2078]
[1735396738409,3.2078,3380.4,3379.7,3.2078]
[1735396738615,1.2624,3380.5,3380.3,0.29634]
[1735396738816,0.29633,3380.4,3380.3,0.29634]
[1735396739319,1.2624,3380.5,3379.8,1.2275]
[1735396739619,1.2624,3380.5,3379.7,3.2078]
[1735396739809,0.29634,3380.4,3380.3,0.29633]
[1735396740015,1.2624,3380.5,3380.4,0.29633]
[1735396741821,0.29629,3381.0,3380.9,0.29627]
[1735396742020,0.29629,3380.9,3380.8,0.29629]
[1735396742216,1.2514,3381.2,3380.6,0.2963]
[1735396742217,0.29631,3380.7,3380.6,0.2963]
[1735396742620,0.29632,3380.6,3380.5,0.29631]
[1735396742812,3.2078,3380.8,3380.2,1.277]
[1735396743018,0.29634,3380.4,3380.3,0.29633]
[1735396743525,1.59743,3380.5,3380.4,0.29633]
[1735396744226,1.59743,3380.5,3380.0,3.94869]
[1735396744227,0.29635,3380.1,3380.0,3.2078]
[1735396744420,0.29637,3380.0,3379.9,0.29636]
[1735396744623,0.74086,3380.3,3379.7,4.57896336]
[1735396744817,0.29638,3379.8,3379.7,4.57896336]
[1735396745126,0.29638,3379.8,3379.5,6.86844504]
[1735396745127,0.2964,3379.6,3379.5,4.87536336]
[1735396745319,0.2964,3379.6,3379.5,4.57896336]
[1735396745625,0.2964,3379.6,3379.5,4.87537336]
[1735396746327,0.2964,3379.6,3379.5,0.29641]
[1735396747025,1.3011,3379.7,3379.6,0.2964]
[1735396747223,0.29637,3380.1,3380.0,0.29636]
[1735396747723,1.2587,3380.3,3380.2,0.29635]
[1735396747915,1.2587,3380.3,3379.9,3.2078]
[1735396748119,0.29637,3380.0,3379.9,0.29636]
[1735396748628,0.29638,3379.9,3379.8,0.29638]
[1735396749727,0.2964,3379.7,3379.6,0.29639]
[1735396749924,0.74094,3379.9,3379.3,4.57896336]
[1735396750130,0.29642,3379.4,3379.3,4.57896336]
[1735396750426,0.29643,3379.2,3379.1,4.87540336]
[1735396750822,0.29643,3379.2,3379.1,4.57896336]
[1735396751430,3.6374,3379.3,3379.0,0.29645]
[1735396751630,3.6374,3379.3,3378.5,9.71650336]
[1735396751826,0.29647,3378.9,3378.8,0.29646]
[1735396752025,3.6374,3379.3,3378.5,8.52800336]
[1735396752225,0.29645,3379.0,3378.9,0.29645]
[1735396753825,3.6374,3379.3,3378.5,3.94904]
[1735396754028,0.29645,3379.1,3379.0,0.29644]
[1735396754228,3.6374,3379.3,3378.5,3.94904]
[1735396754431,0.29644,3379.2,3379.1,0.29644]
[1735396754625,3.6374,3379.3,3378.5,3.2078]
[1735396754931,0.29645,3379.0,3378.9,0.29645]
[1735396755129,0.29644,3379.2,3379.1,0.29643]
[1735396755329,3.93383,3379.3,3379.2,0.29643]
[1735396756131,3.6374,3379.3,3378.7,0.7412]
[1735396756320,1.2373,3379.3,3378.5,3.2078]
[1735396756524,0.29644,3379.2,3379.1,0.29644]
[1735396758528,1.53373,3379.3,3379.2,0.29643]
[1735396759935,1.2373,3379.3,3378.6,0.74122]
[1735396760231,1.2373,3379.3,3378.5,3.2078]
[1735396760422,0.29647,3378.9,3378.8,0.29646]
[1735396760828,2.79467,3378.9,3378.8,0.29646]
[1735396762029,2.4982,3378.9,3378.8,0.29646]
[1735396762237,3.2078,3379.0,3378.9,0.29646]
[1735396762737,1.53373,3379.3,3379.2,0.29643]
[1735396762738,1.2373,3379.3,3379.2,0.29643]
[1735396762932,1.53372,3379.3,3379.2,0.29643]
[1735396763331,1.2373,3379.3,3378.5,4.4718]
[1735396763527,0.29645,3379.1,3379.0,0.29644]
[1735396764038,0.29646,3379.0,3378.9,0.29645]
[1735396764433,1.2202,3379.1,3378.5,3.94904]
[1735396764635,0.29647,3378.9,3378.8,0.29646]
[1735396765130,0.29449361,3378.9,3378.8,0.29646]